fUST/lending_fUST_20260112
["ID","MTS","AMOUNT","RATE_DAILY","PERIOD"]
[401419509,1768199438928,-250.0,0.00018879,2]
[401419510,1768199438938,-187.78006525,0.00018879,2]
[401419511,1768199438948,-250.0,0.00018879,2]
[401419512,1768199438958,-194.72792766,0.00018879,2]
[401419513,1768199438968,-201.93286099,0.00018879,2]
[401419514,1768199438978,-151.0,0.00018879,2]
[401419515,1768199438991,-209.40437684,0.00018879,2]
[401419516,1768199439001,-151.0,0.00018879,2]
[401419517,1768199439012,-217.15233878,0.00018879,2]
[401419518,1768199439022,-151.0,0.00018879,2]
[401419519,1768199439032,-225.18697532,0.00018879,2]
[401419520,1768199439041,-151.0,0.00018879,2]
[401419521,1768199439051,-233.51889341,0.00018879,2]
[401419522,1768199439060,-151.0,0.00018879,2]
[401419523,1768199439070,-242.15909246,0.00018879,2]
[401419524,1768199439079,-151.0,0.00018879,2]
[401419525,1768199439089,-251.11897888,0.00018879,2]
[401419526,1768199439098,-151.0,0.00018879,2]
[401419527,1768199439108,-260.4103811,0.00018879,2]
[401419528,1768199439117,-151.0,0.00018879,2]
[401419529,1768199439127,-270.0455652,0.00018879,2]
[401419530,1768199439136,-151.0,0.00018879,2]
[401419531,1768199439146,-280.03725112,0.00018879,2]
[401419532,1768199439155,-151.0,0.00018879,2]
[401419533,1768199439164,-290.39862941,0.00018879,2]
[401419534,1768199439174,-151.0,0.00018879,2]
[401419535,1768199439183,-301.1433787,0.00018879,2]
[401419536,1768199439193,-151.0,0.00018879,2]
[401419537,1768199439203,-151.0,0.00018879,2]
[401419538,1768199439213,-151.0,0.00018879,2]
[401419539,1768199439222,-667.45702,0.00018879,2]
[401419540,1768199439232,-667.45702,0.00018879,2]
[401419541,1768199439243,-667.45702,0.00018879,2]
[401419542,1768199439252,-667.45702,0.00018879,2]
[401419543,1768199439262,-155.60891,0.00018879,2]
[401419544,1768199439272,-155.60891,0.00018879,2]
[401419545,1768199439281,-155.60891,0.00018879,2]
[401419546,1768199439292,-155.60891,0.00018879,2]
[401419547,1768199439302,-200.0,0.00018889,2]
[401419548,1768199439311,-153.187876,0.0001889,2]
[401419549,1768199439322,-220.173626,0.0001889,2]
[401419550,1768199439331,-220.173626,0.0001889,2]
[401419551,1768199439340,-220.173626,0.0001889,2]
[401419552,1768199439350,-220.173626,0.0001889,2]
[401419553,1768199439359,-151.0,0.0001889,2]
[401419554,1768199439368,-667.45702,0.0001889,2]
[401419555,1768199439378,-667.45702,0.0001889,2]
[401419556,1768199439387,-667.45702,0.0001889,2]
[401419557,1768199439396,-667.45702,0.0001889,2]
[401419558,1768199439406,-155.60891,0.0001889,2]
[401419559,1768199439416,-155.60891,0.0001889,2]
[401419560,1768199439426,-155.60891,0.0001889,2]
[401419561,1768199439436,-155.60891,0.0001889,2]
[401419562,1768199439446,-192369.59788829,0.0001889,2]
[401420084,1768199446153,-283.61394214,0.00017988,2]
[401420190,1768199593400,200.0,0.00029625,120]
[401420191,1768199595217,200.0,0.00029625,120]
[401420192,1768199597662,205.6632851,0.00029625,120]
[401420195,1768199786086,155.0,6e-05,2]
[401420196,1768199825382,1000.0,0.00030137,120]
[401420197,1768199839122,1000.0,0.00030137,120]
[401420198,1768199866138,2001.0,0.00030137,120]
[401420199,1768199876739,161.43063668,0.00025315,120]
[401420200,1768199879106,500.0,0.00030136,120]
[401420201,1768199879338,503.92380097,0.00030136,120]
[401420207,1768199948851,215.0,0.00030136,120]
[401420210,1768200090283,200.0,8.06e-05,2]
[401420214,1768200124940,500.0,0.00030136,120]
[401420217,1768200125174,500.0,0.00030136,120]
[401420218,1768200125414,500.0,0.00030136,120]
[401420219,1768200125655,500.0,0.00030136,120]
[401420220,1768200125917,500.0,0.00030136,120]
[401420221,1768200126188,500.0,0.00030136,120]
[401420222,1768200126422,500.0,0.00030136,120]
[401420223,1768200127372,500.0,0.00030136,120]
[401420224,1768200127609,500.0,0.00030136,120]
[401420225,1768200127878,513.57326811,0.00030136,120]
[401420242,1768200416398,100000.0,0.00030137,120]
[401420245,1768200430473,1384.292185,0.00030137,120]
[401420297,1768200632160,-637.58127357,0.00015299,2]
[401420299,1768200632170,-404.17017932,0.00015399,2]
[401420300,1768200632179,-408.75694487,0.00015399,2]
[401420302,1768200632194,-355.09937777,0.00015399,2]
[401420303,1768200632209,-852.82439464,0.00015399,2]
[401420305,1768200632219,-3637.53161389,0.00015399,2]
[401420307,1768200632230,-6466.72286914,0.00015399,2]
[401420309,1768200632239,-171.57933908,0.00015594,2]
[401420310,1768200632248,-300.0,0.00016208,2]
[401420312,1768200632257,-170.13130278,0.00016209,2]
[401420313,1768200632267,-679.84468591,0.00016209,2]
[401420315,1768200632276,-194.524436,0.00016333,2]
[401420316,1768200632286,-202.46362011,0.00017594,2]
[401420317,1768200632295,-9769.30518445,0.00017908,2]
[401420318,1768200632305,-500.0,0.00017988,2]
[401420319,1768200632318,-220.01396021,0.00017989,2]
[401420320,1768200632327,-60721.01352179,0.0001799,2]
[401420344,1768200638266,-214.41812015,0.00017989,2]
[401420346,1768200638276,-195.01012173,0.00017989,2]
[401420347,1768200638286,-500.0,0.00017989,2]
[401420348,1768200638296,-152.65635289,0.00017989,2]
[401420349,1768200638306,-378.13316476,0.00017989,2]
[401420350,1768200638318,-500.0,0.00017989,2]
[401420351,1768200638328,-37492.22194177,0.0001799,2]
[401420352,1768200638341,-1786.76453644,0.0001799,2]
[401420353,1768200638351,-455.244,0.00018008,2]
[401420354,1768200638360,-178.12,0.00018008,2]
[401420355,1768200638370,-951.85970119,0.00018151,2]
[401420357,1768200638384,-12879.46498603,0.00018151,2]
[401420358,1768200638396,-2732.25612894,0.00018151,2]
[401420359,1768200638407,-13436.41918384,0.00018151,2]
[401420360,1768200638416,-2487.15318209,0.00018151,2]
[401420361,1768200638426,-7186.13397838,0.00018311,2]
[401420362,1768200638436,-514.84070869,0.000184,2]
[401420363,1768200638445,-187.78006525,0.000184,2]
[401420364,1768200638454,-194.72792766,0.000184,2]
[401420365,1768200638463,-201.93286099,0.000184,2]
[401420366,1768200638473,-209.40437684,0.000184,2]
[401420367,1768200638483,-250.0,0.000184,2]
[401420368,1768200638492,-217.15233878,0.000184,2]
[401420369,1768200638501,-250.0,0.000184,2]
[401420370,1768200638511,-225.18697532,0.000184,2]
[401420371,1768200638520,-233.51889341,0.000184,2]
[401420372,1768200638529,-242.15909246,0.000184,2]
[401420373,1768200638539,-251.11897888,0.000184,2]
[401420374,1768200638548,-260.4103811,0.000184,2]
[401420375,1768200638557,-151.0,0.000184,2]
[401420376,1768200638566,-270.0455652,0.000184,2]
[401420377,1768200638576,-151.0,0.000184,2]
[401420378,1768200638586,-151.0,0.000184,2]
[401420379,1768200638595,-151.0,0.000184,2]
[401420380,1768200638604,-280.03725112,0.000184,2]
[401420381,1768200638615,-151.0,0.000184,2]
[401420382,1768200638624,-290.39862941,0.000184,2]
[401420383,1768200638634,-151.0,0.000184,2]
[401420384,1768200638643,-301.1433787,0.000184,2]
[401420385,1768200638652,-151.0,0.000184,2]
[401420386,1768200638662,-151.0,0.000184,2]
[401420387,1768200638673,-151.0,0.000184,2]
[401420388,1768200638682,-151.0,0.000184,2]
[401420389,1768200638691,-151.0,0.000184,2]
[401420390,1768200638701,-151.0,0.000184,2]
[401420391,1768200638710,-151.0,0.000184,2]
[401420392,1768200638719,-5000.0,0.000184,2]
[401420393,1768200638728,-200.75405228,0.0001841,2]
[401420394,1768200638738,-200.0,0.0001841,2]
[401420395,1768200638747,-174.87507375,0.0001841,2]
[401420396,1768200638757,-184.11508305,0.0001841,2]
[401420397,1768200638766,-500.0,0.0001841,2]
[401420398,1768200638776,-500.0,0.0001841,2]
[401420399,1768200638786,-500.0,0.0001841,2]
[401420400,1768200638796,-500.0,0.0001841,2]
[401420401,1768200638805,-500.0,0.0001841,2]
[401420402,1768200638815,-500.0,0.0001841,2]
[401420403,1768200638825,-243.51031366,0.0001841,2]
[401420404,1768200638835,-500.0,0.0001841,2]
[401420405,1768200638844,-500.0,0.0001841,2]
[401420406,1768200638854,-500.0,0.0001841,2]
[401420407,1768200638864,-500.0,0.0001841,2]
[401420408,1768200638874,-500.0,0.0001841,2]
[401420409,1768200638883,-500.0,0.0001841,2]
[401420410,1768200638893,-419877.64074607,0.00018411,2]
[401420411,1768200638907,-2447.396,0.00018411,2]
[401420412,1768200638919,-100651.54758204,0.00018411,2]
[401420413,1768200638928,-151.0,0.00018411,2]
[401420414,1768200638937,-186.397109,0.00018411,2]
[401420415,1768200638947,-220.173626,0.00018411,2]
[401420416,1768200638958,-220.173626,0.00018411,2]
[401420417,1768200638969,-93.04742509,0.00018411,2]
[401420418,1768200638991,-127.12620091,0.00018411,2]
[401420419,1768200639003,-220.173626,0.00018411,2]
[401420420,1768200639012,-667.45702,0.00018411,2]
[401420421,1768200639023,-70.14515309,0.00018411,2]
[401420794,1768200644880,-435.015,0.00018411,2]
[401420806,1768200645683,-500.0,0.00017989,2]
[401420808,1768200645693,-32.26577642,0.00017989,2]
[401421144,1768201013228,160.704526,0.0001254,72]
[401421145,1768201013409,31.74381877,0.0001254,96]
[401421146,1768201013437,128.96070723,0.0001254,96]
[401421147,1768201013606,160.704526,0.0001254,120]
[401421178,1768201079795,550.55486169,0.00030136,120]
[401421189,1768201204661,166.62,5e-05,2]
[401421197,1768201257445,-160.704526,0.0001254,49]
[401421205,1768201292662,-160.704526,0.0001254,25]
[401421302,1768201556861,197.01117469,0.00024865,120]
[401421307,1768201596790,261.0,0.00030137,120]
[401421403,1768201838838,-1200.0,0.00012497,2]
[401421404,1768201838849,-300.0,0.00012498,2]
[401421405,1768201838859,-300.0,0.00012498,2]
[401421406,1768201838870,-300.0,0.00012498,2]
[401421407,1768201838880,-300.0,0.00012498,2]
[401421408,1768201838891,-597.0,0.00012498,2]
[401421409,1768201838901,-222.77007449,0.000125,2]
[401421410,1768201838911,-13555.0,0.000125,2]
[401421411,1768201838922,-160.704526,0.0001254,2]
[401421412,1768201838933,-300.0,0.00012749,2]
[401421413,1768201838943,-500.0,0.00012996,2]
[401421414,1768201838954,-153.55143372,0.00012996,2]
[401421415,1768201838966,-176.47017094,0.00012998,2]
[401421416,1768201838976,-234.18942325,0.00012998,2]
[401421417,1768201838987,-155.56396422,0.00012998,2]
[401421418,1768201838998,-50000.0,0.00012998,2]
[401421419,1768201839009,-187.1572979,0.0001307,2]
[401421420,1768201839020,-500.0,0.00013133,2]
[401421421,1768201839030,-1000.69047643,0.0001317,2]
[401421422,1768201839040,-500.0,0.0001317,2]
[401421423,1768201839049,-500.0,0.0001317,2]
[401421424,1768201839060,-500.0,0.0001317,2]
[401421425,1768201839070,-500.0,0.0001317,2]
[401421426,1768201839080,-500.0,0.0001317,2]
[401421427,1768201839091,-500.0,0.0001317,2]
[401421428,1768201839101,-508.97413541,0.0001317,2]
[401421429,1768201839111,-500.0,0.0001317,2]
[401421430,1768201839121,-500.0,0.0001317,2]
[401421431,1768201839131,-500.0,0.0001317,2]
[401421432,1768201839142,-500.0,0.0001317,2]
[401421433,1768201839152,-500.0,0.0001317,2]
[401421434,1768201839163,-500.0,0.0001317,2]
[401421435,1768201839173,-500.0,0.0001317,2]
[401421436,1768201839183,-500.0,0.0001317,2]
[401421437,1768201839193,-500.0,0.0001317,2]
[401421438,1768201839203,-500.0,0.0001317,2]
[401421439,1768201839214,-500.0,0.0001317,2]
[401421440,1768201839224,-500.0,0.0001317,2]
[401421441,1768201839234,-500.0,0.0001317,2]
[401421442,1768201839245,-500.0,0.0001317,2]
[401421443,1768201839256,-500.0,0.0001317,2]
[401421444,1768201839267,-500.0,0.0001317,2]
[401421445,1768201839391,-500.0,0.0001317,2]
[401421446,1768201839402,-318.38647094,0.0001317,2]
[401421447,1768201839413,-500.0,0.0001317,2]
[401421448,1768201839424,-500.0,0.0001317,2]
[401421449,1768201839435,-500.0,0.0001317,2]
[401421450,1768201839445,-500.0,0.0001317,2]
[401421451,1768201839455,-500.0,0.0001317,2]
[401421452,1768201839466,-500.0,0.0001317,2]
[401421453,1768201839477,-500.0,0.0001317,2]
[401421454,1768201839487,-500.0,0.0001317,2]
[401421455,1768201839498,-500.0,0.0001317,2]
[401421456,1768201839509,-483.76272741,0.0001317,2]
[401421457,1768201839519,-500.0,0.0001317,2]
[401421458,1768201839530,-500.0,0.0001317,2]
[401421459,1768201839540,-500.0,0.0001317,2]
[401421460,1768201839550,-500.0,0.0001317,2]
[401421461,1768201839561,-500.0,0.0001317,2]
[401421462,1768201839571,-500.0,0.0001317,2]
[401421463,1768201839581,-500.0,0.0001317,2]
[401421465,1768201839591,-500.0,0.0001317,2]
[401421466,1768201839602,-500.0,0.0001317,2]
[401421467,1768201839612,-500.0,0.0001317,2]
[401421468,1768201839622,-500.0,0.0001317,2]
[401421469,1768201839633,-500.0,0.0001317,2]
[401421470,1768201839643,-500.0,0.0001317,2]
[401421471,1768201839653,-500.0,0.0001317,2]
[401421472,1768201839665,-500.0,0.0001317,2]
[401421473,1768201839677,-574.37792153,0.0001317,2]
[401421474,1768201839688,-500.0,0.0001317,2]
[401421475,1768201839698,-500.0,0.0001317,2]
[401421476,1768201839709,-500.0,0.0001317,2]
[401421477,1768201839720,-500.0,0.0001317,2]
[401421478,1768201839730,-500.0,0.0001317,2]
[401421479,1768201839741,-500.0,0.0001317,2]
[401421480,1768201839752,-500.0,0.0001317,2]
[401421481,1768201839763,-500.0,0.0001317,2]
[401421482,1768201839774,-500.0,0.0001317,2]
[401421483,1768201839784,-500.0,0.0001317,2]
[401421484,1768201839795,-500.0,0.0001317,2]
[401421485,1768201839804,-500.0,0.0001317,2]
[401421486,1768201839814,-500.0,0.0001317,2]
[401421487,1768201839824,-500.0,0.0001317,2]
[401421488,1768201839834,-500.0,0.0001317,2]
[401421489,1768201839844,-500.0,0.0001317,2]
[401421490,1768201839854,-500.0,0.0001317,2]
[401421491,1768201839865,-500.0,0.0001317,2]
[401421492,1768201839877,-500.0,0.0001317,2]
[401421493,1768201839888,-500.0,0.0001317,2]
[401421494,1768201839899,-500.0,0.0001317,2]
[401421495,1768201839910,-500.0,0.0001317,2]
[401421496,1768201839921,-500.0,0.0001317,2]
[401421497,1768201839932,-502.91835513,0.0001317,2]
[401421498,1768201839942,-500.0,0.0001317,2]
[401421499,1768201839952,-500.0,0.0001317,2]
[401421500,1768201839963,-500.0,0.0001317,2]
[401421501,1768201839973,-202.04294121,0.0001317,2]
[401421502,1768201839983,-500.0,0.0001317,2]
[401421503,1768201839996,-500.0,0.0001317,2]
[401421504,1768201840006,-500.0,0.0001317,2]
[401421505,1768201840015,-500.0,0.0001317,2]
[401421506,1768201840026,-250.00000001,0.0001317,2]
[401421507,1768201840036,-8969.66740678,0.00013171,2]
[401421508,1768201840046,-500.0,0.00013171,2]
[401421509,1768201840056,-500.0,0.0001327,2]
[401421510,1768201840067,-171.5,0.00013272,2]
[401421511,1768201840077,-341.49951246,0.00013273,2]
[401421512,1768201840087,-271.37460432,0.00013273,2]
[401421513,1768201840096,-161.86016703,0.00013273,2]
[401421514,1768201840108,-382.20538607,0.00013273,2]
[401421515,1768201840118,-501.40655362,0.00013273,2]
[401421516,1768201840132,-502.08115925,0.00013273,2]
[401421517,1768201840142,-500.0,0.00013273,2]
[401421518,1768201840152,-500.0,0.00013273,2]
[401421519,1768201840163,-500.0,0.00013273,2]
[401421520,1768201840173,-546.46787992,0.00013273,2]
[401421521,1768201840184,-501.3108664,0.00013273,2]
[401421522,1768201840194,-500.0,0.00013273,2]
[401421523,1768201840204,-501.35154837,0.00013273,2]
[401421524,1768201840215,-500.0,0.00013273,2]
[401421525,1768201840226,-501.94498342,0.00013273,2]
[401421526,1768201840236,-501.68949839,0.00013273,2]
[401421527,1768201840247,-502.67808666,0.00013273,2]
[401421528,1768201840257,-502.85722727,0.00013273,2]
[401421529,1768201840267,-500.0,0.00013273,2]
[401421530,1768201840277,-500.0,0.00013273,2]
[401421531,1768201840287,-501.95958622,0.00013273,2]
[401421532,1768201840298,-502.62210403,0.00013273,2]
[401421533,1768201840308,-500.0,0.00013273,2]
[401421534,1768201840318,-500.0,0.00013273,2]
[401421535,1768201840328,-603.4281846,0.00013273,2]
[401421536,1768201840338,-502.12747569,0.00013273,2]
[401421537,1768201840348,-500.0,0.00013273,2]
[401421538,1768201840358,-502.13597005,0.00013273,2]
[401421539,1768201840369,-500.0,0.00013273,2]
[401421540,1768201840379,-500.0,0.00013273,2]
[401421541,1768201840390,-186.60551546,0.00013273,2]
[401421542,1768201840400,-500.0,0.00013273,2]
[401421543,1768201840410,-500.0,0.00013273,2]
[401421544,1768201840420,-500.0,0.00013273,2]
[401421545,1768201840430,-500.0,0.00013273,2]
[401421546,1768201840440,-500.0,0.00013273,2]
[401421547,1768201840450,-500.0,0.00013273,2]
[401421548,1768201840460,-500.0,0.00013273,2]
[401421549,1768201840470,-502.43303866,0.00013273,2]
[401421550,1768201840480,-500.0,0.00013273,2]
[401421551,1768201840489,-500.0,0.00013273,2]
[401421552,1768201840499,-572.75856474,0.00013407,2]
[401421553,1768201840509,-155.80668241,0.00013425,2]
[401421554,1768201840519,-154.4740276,0.00013425,2]
[401421555,1768201840529,-153.87370318,0.00013425,2]
[401421556,1768201840538,-153.6184897,0.00013425,2]
[401421557,1768201840548,-500.0,0.00013445,2]
[401421558,1768201840558,-600.0,0.00013536,2]
[401421559,1768201840568,-171.5,0.00013545,2]
[401421560,1768201840579,-207.93761876,0.00013562,2]
[401421561,1768201840589,-152.55032069,0.00013562,2]
[401421562,1768201840599,-175.89775122,0.00013562,2]
[401421563,1768201840608,-300.0,0.00013673,2]
[401421564,1768201840618,-500.0,0.00013698,2]
[401421565,1768201840627,-500.0,0.00013698,2]
[401421566,1768201840636,-500.0,0.00013698,2]
[401421567,1768201840646,-517.46996451,0.00013698,2]
[401421568,1768201840656,-504.26481707,0.00013698,2]
[401421569,1768201840667,-1401.78,0.00013698,2]
[401421570,1768201840679,-1401.78,0.00013698,2]
[401421571,1768201840689,-1401.78,0.00013698,2]
[401421572,1768201840699,-500.0,0.00013698,2]
[401421573,1768201840709,-500.0,0.00013698,2]
[401421574,1768201840719,-500.0,0.00013698,2]
[401421575,1768201840729,-500.0,0.00013698,2]
[401421576,1768201840739,-500.0,0.00013698,2]
[401421577,1768201840749,-500.0,0.00013698,2]
[401421578,1768201840759,-502.92050555,0.00013698,2]
[401421579,1768201840769,-501.5905441,0.00013699,2]
[401421580,1768201840779,-501.81652134,0.00013699,2]
[401421581,1768201840789,-501.90923517,0.00013699,2]
[401421582,1768201840798,-503.24969721,0.00013699,2]
[401421583,1768201840808,-501.77348908,0.00013699,2]
[401421584,1768201840818,-502.56719086,0.00013699,2]
[401421585,1768201840828,-500.0,0.00013699,2]
[401421586,1768201840839,-150.30892656,0.00013699,2]
[401421587,1768201840851,-500.70607322,0.00013699,2]
[401421588,1768201840861,-502.47259281,0.00013699,2]
[401421589,1768201840871,-419.18656195,0.00013699,2]
[401421591,1768201840881,-500.99385742,0.00013699,2]
[401421592,1768201840891,-185.5415685,0.00013699,2]
[401421593,1768201840901,-501.39315423,0.00013699,2]
[401421594,1768201840911,-500.0,0.00013699,2]
[401421595,1768201840922,-500.0,0.00013699,2]
[401421596,1768201840932,-500.0,0.00013699,2]
[401421597,1768201840943,-500.0,0.00013699,2]
[401421598,1768201840953,-500.0,0.00013699,2]
[401421599,1768201840964,-500.0,0.00013699,2]
[401421600,1768201840975,-502.40041015,0.00013699,2]
[401421601,1768201840986,-500.0,0.00013699,2]
[401421602,1768201840997,-499.91724052,0.00013699,2]
[401421603,1768201841007,-500.0,0.00013699,2]
[401421605,1768201841017,-500.0,0.00013699,2]
[401421606,1768201841027,-501.23072862,0.00013699,2]
[401421607,1768201841037,-500.0,0.00013699,2]
[401421608,1768201841047,-500.0,0.00013699,2]
[401421609,1768201841057,-501.93193292,0.00013699,2]
[401421610,1768201841069,-372.65975673,0.00013699,2]
[401421611,1768201841079,-500.0,0.00013699,2]
[401421612,1768201841090,-503.13579002,0.00013699,2]
[401421614,1768201841101,-502.43114516,0.00013699,2]
[401421615,1768201841111,-150.3969727,0.00013699,2]
[401421617,1768201841121,-420.0,0.00013713,2]
[401421619,1768201841137,-420.0,0.00013713,2]
[401421621,1768201841147,-420.0,0.00013713,2]
[401421623,1768201841157,-420.0,0.00013713,2]
[401421625,1768201841169,-500.0,0.00013719,2]
[401421627,1768201841181,-1680.0,0.00013747,2]
[401421629,1768201841192,-297.31045454,0.00013819,2]
[401421631,1768201841202,-244.5482707,0.00013819,2]
[401421633,1768201841213,-500.42367526,0.00013819,2]
[401421635,1768201841223,-500.42367526,0.00013819,2]
[401421637,1768201841233,-500.0,0.00013819,2]
[401421639,1768201841244,-500.42367526,0.00013819,2]
[401421641,1768201841254,-500.42367526,0.00013819,2]
[401421643,1768201841264,-500.42367526,0.00013819,2]
[401421645,1768201841275,-500.42367526,0.00013819,2]
[401421647,1768201841285,-500.42367526,0.00013819,2]
[401421649,1768201841295,-500.42367526,0.00013819,2]
[401421651,1768201841306,-500.42367526,0.00013819,2]
[401421653,1768201841316,-500.42367526,0.00013819,2]
[401421655,1768201841326,-500.42367526,0.00013819,2]
[401421657,1768201841338,-500.42367526,0.00013819,2]
[401421659,1768201841350,-500.42367526,0.00013819,2]
[401421661,1768201841360,-500.42367526,0.00013819,2]
[401421663,1768201841372,-500.42367526,0.00013819,2]
[401421665,1768201841383,-500.42367526,0.00013819,2]
[401421667,1768201841394,-500.42367526,0.00013819,2]
[401421669,1768201841404,-584.24181172,0.00013819,2]
[401421672,1768201841416,-584.24181172,0.00013819,2]
[401421673,1768201841436,-584.24181172,0.00013819,2]
[401421674,1768201841447,-584.24181172,0.00013819,2]
[401421675,1768201841457,-584.24181172,0.00013819,2]
[401421676,1768201841466,-584.24181172,0.00013819,2]
[401421677,1768201841476,-584.24181172,0.00013819,2]
[401421678,1768201841486,-584.24181172,0.00013819,2]
[401421679,1768201841497,-584.2418117,0.00013819,2]
[401421680,1768201841508,-584.2418117,0.00013819,2]
[401421681,1768201841518,-584.2418117,0.00013819,2]
[401421682,1768201841528,-171.51652017,0.00013819,2]
[401421683,1768201841539,-500.0,0.0001382,2]
[401421684,1768201841549,-1401.78,0.0001382,2]
[401421685,1768201841559,-500.0,0.0001382,2]
[401421686,1768201841569,-501.67107045,0.00013821,2]
[401421687,1768201841579,-1006.28424091,0.00013821,2]
[401421688,1768201841589,-1000.0,0.00013821,2]
[401421689,1768201841599,-189.4632767,0.00013821,2]
[401421690,1768201841609,-452.36939792,0.00013821,2]
[401421691,1768201841619,-1000.0,0.00013821,2]
[401421692,1768201841628,-1000.0,0.00013821,2]
[401421693,1768201841638,-1000.0,0.00013821,2]
[401421694,1768201841650,-1000.0,0.00013821,2]
[401421695,1768201841660,-1000.0,0.00013821,2]
[401421696,1768201841674,-1000.0,0.00013821,2]
[401421697,1768201841685,-737.5955345,0.00013821,2]
[401421698,1768201841696,-1000.0,0.00013821,2]
[401421699,1768201841707,-1000.0,0.00013821,2]
[401421700,1768201841717,-1000.0,0.00013821,2]
[401421701,1768201841728,-501.53793087,0.00013821,2]
[401421702,1768201841739,-446.00413322,0.00013821,2]
[401421704,1768201841750,-1000.0,0.00013821,2]
[401421705,1768201841761,-502.01386232,0.00013821,2]
[401421707,1768201841771,-1000.0,0.00013821,2]
[401421709,1768201841782,-200.0,0.00013973,2]
[401421711,1768201841791,-500.0,0.00013993,2]
[401421713,1768201841802,-200.0,0.00014095,2]
[401421715,1768201841812,-600.0,0.00014221,2]
[401421717,1768201841822,-407.71460378,0.00014232,2]
[401421719,1768201841833,-1000.0,0.00014247,2]
[401421722,1768201841843,-1002.86139746,0.00014247,2]
[401421724,1768201841853,-1000.0,0.00014247,2]
[401421726,1768201841863,-1000.0,0.00014247,2]
[401421728,1768201841873,-1000.0,0.00014247,2]
[401421730,1768201841883,-1082.21003204,0.00014247,2]
[401421732,1768201841894,-247.54647373,0.00014247,2]
[401421734,1768201841904,-1000.0,0.00014247,2]
[401421736,1768201841914,-1000.0,0.00014247,2]
[401421738,1768201841924,-1000.0,0.00014247,2]
[401421740,1768201841934,-449.22475598,0.00014247,2]
[401421742,1768201841945,-1000.0,0.00014247,2]
[401421744,1768201841955,-1000.0,0.00014247,2]
[401421746,1768201841965,-500.0,0.00014267,2]
[401421748,1768201841975,-500.0,0.00014368,2]
[401421750,1768201841986,-1401.78,0.00014368,2]
[401421752,1768201841997,-256.08,0.00014368,2]
[401421754,1768201842007,-1500.0,0.00014368,2]
[401421756,1768201842017,-1500.0,0.00014368,2]
[401421758,1768201842027,-1500.0,0.00014368,2]
[401421760,1768201842037,-1500.0,0.00014368,2]
[401421762,1768201842047,-1030.50067108,0.00014368,2]
[401421764,1768201842057,-1500.0,0.00014368,2]
[401421775,1768201842161,-1500.0,0.00014368,2]
[401421777,1768201842172,-1500.0,0.00014368,2]
[401421779,1768201842182,-1500.0,0.00014368,2]
[401421781,1768201842193,-1500.0,0.00014368,2]
[401421783,1768201842203,-1003.23114643,0.00014368,2]
[401421785,1768201842215,-1764.82794466,0.00014386,2]
[401421787,1768201842226,-262.8686879,0.000145,2]
[401421789,1768201842236,-258.38006452,0.000145,2]
[401421791,1768201842248,-5000.0,0.0001451,2]
[401421793,1768201842259,-500.0,0.00014541,2]
[401421795,1768201842270,-900.0,0.00014768,2]
[401421797,1768201842281,-500.0,0.00014794,2]
[401421799,1768201842291,-1401.78,0.00014794,2]
[401421801,1768201842301,-502.85796643,0.00014795,2]
[401421803,1768201842313,-502.42903253,0.00014795,2]
[401421805,1768201842324,-478.18808062,0.00014795,2]
[401421807,1768201842334,-1500.0,0.00014795,2]